fUSD/lending_fUSD_20260207
["ID","MTS","AMOUNT","RATE_DAILY","PERIOD"]
[404694737,1770475844377,-151.0,0.00017,2]
[404694738,1770475844386,-151.0,0.00017,2]
[404694739,1770475844395,-152.384454,0.00017,2]
[404694740,1770475844404,-151.0,0.00017,2]
[404694741,1770475844413,-151.0,0.00017,2]
[404694742,1770475844423,-151.0,0.00017,2]
[404694743,1770475844432,-151.0,0.00017,2]
[404694744,1770475844442,-167.320987,0.00017,2]
[404694745,1770475844451,-151.0,0.00017,2]
[404694746,1770475844460,-151.0,0.00017,2]
[404694747,1770475844469,-151.0,0.00017,2]
[404694748,1770475844478,-151.0,0.00017,2]
[404694749,1770475844487,-151.0,0.00017,2]
[404694750,1770475844497,-151.0,0.00017,2]
[404694751,1770475844507,-156.938742,0.00017,2]
[404694752,1770475844516,-1500.0,0.00017,2]
[404694753,1770475844526,-151.0,0.00017,2]
[404694754,1770475844535,-151.0,0.00017,2]
[404694755,1770475844544,-151.0,0.00017,2]
[404694756,1770475844554,-151.0,0.00017,2]
[404694757,1770475844563,-153.583675,0.00017,2]
[404694758,1770475844572,-694.050246,0.00017,2]
[404694759,1770475844581,-153.583675,0.00017,2]
[404694760,1770475844590,-694.050246,0.00017,2]
[404694761,1770475844599,-694.050246,0.00017,2]
[404694762,1770475844608,-153.583675,0.00017,2]
[404694763,1770475844619,-694.050246,0.00017,2]
[404694764,1770475844628,-153.583675,0.00017,2]
[404694765,1770475844638,-1500.0,0.00017,2]
[404694766,1770475844648,-151.0,0.00017,2]
[404694767,1770475844657,-818.651902,0.00017,2]
[404694768,1770475844670,-818.651902,0.00017,2]
[404694769,1770475844679,-151.0,0.00017,2]
[404694770,1770475844689,-818.651902,0.00017,2]
[404694771,1770475844699,-151.0,0.00017,2]
[404694772,1770475844709,-818.651902,0.00017,2]
[404694773,1770475844718,-151.0,0.00017,2]
[404694774,1770475844728,-200.0,0.00017025,2]
[404694775,1770475844911,-500.0,0.00017025,2]
[404694776,1770475844922,-200.0,0.00017025,2]
[404694777,1770475844932,-253.01,0.00017025,2]
[404694778,1770475844942,-163.0,0.0001704,2]
[404694779,1770475844952,-17909.22851522,0.00017074,2]
[404694780,1770475844962,-2758.25469638,0.000171,2]
[404694781,1770475844971,-327.11,0.00017157,2]
[404694782,1770475844981,-2758.25469638,0.000173,2]
[404694783,1770475844990,-743.15006395,0.00017321,2]
[404694784,1770475845000,-681.22482766,0.00017328,2]
[404694785,1770475845010,-1616.6496056,0.0001734,2]
[404694786,1770475845019,-840.0,0.0001736,2]
[404694787,1770475845028,-163.0,0.0001736,2]
[404694788,1770475845038,-163.0,0.0001736,2]
[404694789,1770475845048,-1014.00974723,0.00017364,2]
[404694790,1770475845058,-49227.62571378,0.00017396,2]
[404694791,1770475845068,-202.92878406,0.000174,2]
[404694792,1770475845078,-374.8053166,0.00017406,2]
[404694793,1770475845087,-377.7699154,0.00017408,2]
[404694794,1770475845097,-3520.645,0.0001744,2]
[404694795,1770475845106,-276.051,0.0001744,2]
[404694796,1770475845116,-2297.83,0.00017466,2]
[404694797,1770475845125,-17909.22851522,0.00017487,2]
[404694798,1770475845134,-187.78006525,0.000175,2]
[404694799,1770475845144,-2758.25469638,0.000175,2]
[404694800,1770475845153,-600.0,0.00017521,2]
[404694801,1770475845163,-1093.23870992,0.00017542,2]
[404694802,1770475845172,-1047.50790416,0.00017542,2]
[404694803,1770475845182,-1057.43039468,0.00017542,2]
[404694804,1770475845191,-1134.78451262,0.00017542,2]
[404694805,1770475845200,-1806.47474041,0.00017542,2]
[404694806,1770475845214,-200.0,0.00017573,2]
[404694807,1770475845223,-500.0,0.00017573,2]
[404694808,1770475845233,-200.0,0.00017573,2]
[404694809,1770475845242,-1500.0,0.000176,2]
[404694810,1770475845253,-1014.37890134,0.0001764,2]
[404694811,1770475845262,-1019.39940853,0.0001764,2]
[404694812,1770475845271,-1083.18192203,0.0001764,2]
[404694813,1770475845281,-1145.36850905,0.0001764,2]
[404694814,1770475845290,-1045.46431319,0.0001764,2]
[404694815,1770475845299,-1074.50179037,0.0001764,2]
[404694816,1770475845308,-2063.79578644,0.0001764,2]
[404694817,1770475845319,-1252.0,0.00017646,2]
[404694818,1770475845328,-163.0,0.0001768,2]
[404694819,1770475845337,-840.0,0.0001768,2]
[404694820,1770475845346,-4609.0,0.00017683,2]
[404694821,1770475845355,-783.19290883,0.000177,2]
[404694822,1770475845365,-2758.25469638,0.000177,2]
[404694823,1770475845375,-253.01,0.00017706,2]
[404694824,1770475845384,-334.5472959,0.00017773,2]
[404694825,1770475845393,-203.91426758,0.00017808,2]
[404694826,1770475845405,-500.0,0.00017808,2]
[404694827,1770475845414,-500.0,0.00017808,2]
[404694828,1770475845424,-500.0,0.00017808,2]
[404694829,1770475845433,-280.09509385,0.00017808,2]
[404694830,1770475845443,-250.0,0.00017808,10]
[404694831,1770475845452,-250.0,0.00017808,10]
[404694832,1770475845462,-250.0,0.00017808,10]
[404694833,1770475845473,-250.0,0.00017808,10]
[404694834,1770475845483,-250.0,0.00017808,10]
[404694835,1770475845493,-250.0,0.00017808,10]
[404694836,1770475845504,-250.0,0.00017808,10]
[404694837,1770475845513,-250.000003,0.00017808,10]
[404694838,1770475845524,-1261.90557685,0.0001782,10]
[404694839,1770475845534,-835.16495,0.0001782,2]
[404694840,1770475845543,-835.16494,0.0001782,2]
[404694841,1770475845553,-835.16494,0.0001782,2]
[404694842,1770475845563,-835.16495,0.0001782,2]
[404694843,1770475845572,-360.7232854,0.00017847,2]
[404694844,1770475845583,-625.73,0.00017899,2]
[404694845,1770475845592,-500.0,0.00017899,2]
[404694846,1770475845602,-9898.87098964,0.000179,3]
[404694847,1770475845611,-500.0,0.000179,2]
[404694848,1770475845622,-266.87728498,0.000179,2]
[404694849,1770475845632,-171.71756041,0.000179,2]
[404694850,1770475845641,-2148.24526345,0.000179,2]
[404694851,1770475845651,-49227.62571378,0.000179,2]
[404694852,1770475845660,-17909.22851522,0.000179,2]
[404694853,1770475845670,-471.34981416,0.000179,3]
[404694854,1770475845679,-202.92878406,0.000179,2]
[404694855,1770475845688,-2878.53517258,0.000179,2]
[404694856,1770475845698,-15432.13985801,0.000179,2]
[404694857,1770475845708,-2758.25469638,0.000179,2]
[404694858,1770475845717,-1922.3044137,0.000179,2]
[404694859,1770475845727,-500.0,0.000179,2]
[404694860,1770475845736,-500.0,0.000179,2]
[404694861,1770475845746,-500.0,0.000179,2]
[404694862,1770475845756,-500.0,0.000179,2]
[404694863,1770475845766,-500.0,0.000179,2]
[404694864,1770475845775,-500.0,0.000179,2]
[404694865,1770475845784,-500.0,0.000179,2]
[404694866,1770475845793,-444.30041557,0.000179,2]
[404694867,1770475845803,-1123.0,0.00017918,2]
[404694868,1770475845813,-151.0,0.00017947,2]
[404694869,1770475845822,-364.5314729,0.0001795,2]
[404694870,1770475845831,-164408.4286446,0.0001795,2]
[404694872,1770475845989,-400.0,0.0001795,2]
[404694873,1770475846001,-511.70554514,0.0001795,2]
[404694874,1770475846012,-564.0886184,0.0001795,2]
[404694875,1770475846024,-5622.66069436,0.0001795,2]
[404694876,1770475846033,-500.0,0.0001797,2]
[404694877,1770475846043,-500.0,0.0001797,2]
[404694878,1770475846053,-500.0,0.0001797,2]
[404694879,1770475846062,-500.0,0.0001797,2]
[404694880,1770475846072,-500.0,0.0001797,2]
[404694881,1770475846082,-809.61385377,0.0001797,2]
[404694883,1770475846091,-500.0,0.00017973,2]
[404694885,1770475846101,-150.0,0.00017973,2]
[404694886,1770475846110,-500.0,0.00017986,2]
[404694888,1770475846119,-2902.33331122,0.0001799,3]
[404694889,1770475846132,-477.01024154,0.0001799,3]
[404694893,1770475846322,-412.0,0.00016731,2]
[404694895,1770475846333,-122.0,0.000171,2]
[404694897,1770475846345,-327.45407989,0.000171,2]
[404694898,1770475846356,-832.35031402,0.000171,2]
[404694899,1770475846370,-218.19560609,0.000171,2]
[404694900,1770475846380,-6871.12991146,0.0001799,3]
[404694901,1770475846395,-1712.5,0.0001799,3]
[404694902,1770475846423,-300.94232191,0.0001799,3]
[404694903,1770475846438,-51492.96222876,0.0001799,3]
[404694904,1770475846449,-481.57727047,0.0001799,3]
[404694905,1770475846461,-2388.31736005,0.0001799,3]
[404694906,1770475846764,-151.0,0.00014634,2]
[404694907,1770475846774,-777.88500443,0.00016064,2]
[404694908,1770475846785,-3806.58011675,0.00016064,2]
[404694909,1770475846795,-2333.30369259,0.00016676,2]
[404694910,1770475846807,-2251.16142859,0.00016676,2]
[404694911,1770475846817,-1000.0,0.00017024,2]
[404694912,1770475846827,-8440.05654283,0.0001799,3]
[404694932,1770476833733,200.0,0.000126,4]
[404694933,1770476835828,400.0,0.000127,4]
[404694934,1770476837927,600.0,0.000128,4]
[404694935,1770476840023,800.0,0.000129,4]
[404694936,1770476842142,1000.0,0.000139,5]
[404694946,1770477031380,-251.0,0.00012338,2]
[404694947,1770477031390,-8.85,0.00012338,2]
[404694948,1770477031403,-191.15,0.00012338,2]
[404694949,1770477031412,-397.82499999,0.00012557,2]
[404694950,1770477031424,-294.6837188,0.00012557,2]
[404694951,1770477031436,-1026.66570167,0.00012557,2]
[404694952,1770477031447,-150.0,0.00012656,2]
[404694953,1770477031456,-167.0,0.00012656,2]
[404694954,1770477031467,-300.0,0.00012656,2]
[404694955,1770477031477,-1200.0,0.00012656,2]
[404694956,1770477031486,-5370.2291694,0.00012657,2]
[404694957,1770477031503,-77595.45592913,0.00012657,2]
[404694958,1770477031515,-478.91649147,0.00012657,2]
[404694959,1770477031526,-1052.16948953,0.00012657,2]
[404694960,1770477031538,-2279.48107587,0.00012657,2]
[404694961,1770477031591,-658.19883048,0.00012657,2]
[404694962,1770477031603,-300.0,0.00012657,2]
[404694980,1770477037356,-16317.37459625,0.00012657,2]
[404694981,1770477037367,-70694.92297898,0.00012657,2]
[404694982,1770477037478,-80721.86583999,0.00012657,2]
[404694983,1770477037487,-51193.38640203,0.00012657,2]
[404694984,1770477037497,-500.0,0.00012657,2]
[404694985,1770477037507,-250.0,0.00012861,2]
[404694986,1770477037521,-250.0,0.0001303,2]
[404694987,1770477037531,-237.87852903,0.00013064,2]
[404694988,1770477037540,-1037.78819678,0.00013064,2]
[404694989,1770477037553,-6432.79229489,0.00013064,2]
[404694990,1770477037565,-375.10868837,0.00013064,2]
[404694991,1770477037575,-237.87852903,0.00013115,2]
[404694992,1770477037584,-150.0,0.00013131,2]
[404694993,1770477037595,-150.0,0.00013131,2]
[404694994,1770477037604,-172.07820883,0.00013148,2]
[404694995,1770477037614,-151.0,0.00013155,2]
[404694996,1770477037623,-1665711.87024438,0.00013158,2]
[404694997,1770477037640,-726.4,0.00013158,2]
[404694999,1770477039670,-1032.145,0.00013158,2]
[404695000,1770477039682,-3336.62340853,0.00013158,2]
[404695001,1770477039693,-6008.50315525,0.00013158,2]
[404695002,1770477039799,-1823184.45819184,0.00013158,2]
[404695003,1770477039809,-245.49993683,0.00013165,2]
[404695004,1770477039819,-17803.95136232,0.00013165,2]
[404695005,1770477039828,-237.87852903,0.00013165,2]
[404695006,1770477039838,-150.0,0.00013186,2]
[404695007,1770477039848,-610.08217695,0.000132,2]
[404695008,1770477039857,-1123.0,0.00013233,2]
[404695009,1770477039867,-150.0,0.00013241,2]
[404695010,1770477039876,-318.15132123,0.00013256,2]
[404695011,1770477039886,-500.0,0.00013256,2]
[404695012,1770477039895,-500.0,0.00013256,2]
[404695013,1770477039904,-500.0,0.00013256,2]
[404695014,1770477039914,-500.0,0.00013256,2]
[404695015,1770477039924,-500.0,0.00013256,2]
[404695016,1770477039933,-500.0,0.00013256,2]
[404695018,1770477039943,-500.0,0.00013256,2]
[404695019,1770477039952,-393.08630174,0.00013256,2]
[404695020,1770477039961,-500.0,0.00013256,2]
[404695021,1770477039971,-299.80855233,0.00013256,2]
[404695022,1770477039980,-500.0,0.00013256,2]
[404695023,1770477039990,-500.0,0.00013256,2]
[404695024,1770477039999,-500.0,0.00013256,2]
[404695025,1770477040008,-500.0,0.00013256,2]
[404695026,1770477040018,-500.0,0.00013256,2]
[404695027,1770477040028,-500.0,0.00013256,2]
[404695028,1770477040037,-500.0,0.00013256,2]
[404695029,1770477040046,-500.0,0.00013256,2]
[404695030,1770477040057,-500.0,0.00013256,2]
[404695031,1770477040077,-500.0,0.00013256,2]
[404695032,1770477040087,-500.0,0.00013256,2]
[404695033,1770477040096,-500.0,0.00013256,2]
[404695034,1770477040106,-500.0,0.00013256,2]
[404695035,1770477040116,-500.0,0.00013256,2]
[404695036,1770477040126,-500.0,0.00013256,2]
[404695037,1770477040135,-284.49443019,0.00013256,2]
[404695038,1770477040145,-500.0,0.00013256,2]
[404695039,1770477040155,-500.0,0.00013256,2]
[404695040,1770477040164,-500.0,0.00013256,2]
[404695041,1770477040174,-500.0,0.00013256,2]
[404695042,1770477040184,-500.0,0.00013256,2]
[404695043,1770477040194,-500.0,0.00013256,2]
[404695044,1770477040205,-500.0,0.00013256,2]
[404695045,1770477040215,-500.0,0.00013256,2]
[404695046,1770477040225,-500.0,0.00013256,2]
[404695047,1770477040234,-500.0,0.00013256,2]
[404695048,1770477040244,-500.0,0.00013256,2]
[404695049,1770477040254,-500.0,0.00013256,2]
[404695050,1770477040264,-500.0,0.00013256,2]
[404695051,1770477040274,-500.0,0.00013256,2]
[404695052,1770477040283,-500.0,0.00013256,2]
[404695053,1770477040294,-500.0,0.00013256,2]
[404695054,1770477040304,-500.0,0.00013256,2]
[404695055,1770477040314,-500.0,0.00013256,2]
[404695056,1770477040324,-500.0,0.00013256,2]
[404695057,1770477040334,-500.0,0.00013256,2]
[404695058,1770477040343,-500.0,0.00013256,2]
[404695059,1770477040353,-500.0,0.00013256,2]
[404695060,1770477040363,-500.0,0.00013256,2]
[404695061,1770477040373,-500.0,0.00013256,2]
[404695062,1770477040383,-500.0,0.00013256,2]
[404695063,1770477040393,-500.0,0.00013256,2]
[404695064,1770477040403,-500.0,0.00013256,2]
[404695065,1770477040412,-500.0,0.00013256,2]
[404695066,1770477040422,-500.0,0.00013256,2]
[404695067,1770477040432,-500.0,0.00013256,2]
[404695068,1770477040442,-500.0,0.00013256,2]
[404695069,1770477040451,-500.0,0.00013256,2]
[404695070,1770477040460,-500.0,0.00013256,2]
[404695071,1770477040470,-500.0,0.00013256,2]
[404695072,1770477040480,-500.0,0.00013256,2]
[404695073,1770477040489,-500.0,0.00013256,2]
[404695074,1770477040499,-500.0,0.00013256,2]
[404695075,1770477040509,-500.0,0.00013256,2]
[404695076,1770477040519,-500.0,0.00013256,2]
[404695077,1770477040528,-500.0,0.00013256,2]
[404695078,1770477040538,-500.0,0.00013256,2]
[404695079,1770477040547,-500.0,0.00013256,2]
[404695080,1770477040564,-500.0,0.00013256,2]
[404695081,1770477040573,-500.0,0.00013256,2]
[404695082,1770477040583,-500.0,0.00013256,2]
[404695083,1770477040592,-500.0,0.00013256,2]
[404695084,1770477040602,-500.0,0.00013256,2]
[404695085,1770477040612,-262.46981116,0.00013256,2]
[404695086,1770477040625,-500.0,0.00013256,2]
[404695087,1770477040637,-500.0,0.00013256,2]
[404695088,1770477040899,-500.0,0.00013256,2]
[404695089,1770477040914,-500.0,0.00013256,2]
[404695090,1770477040930,-500.0,0.00013256,2]
[404695091,1770477040939,-750.46184486,0.00013256,2]
[404695092,1770477040950,-750.46184486,0.00013256,2]
[404695093,1770477040959,-750.46184486,0.00013256,2]
[404695094,1770477040969,-750.46184486,0.00013256,2]
[404695095,1770477040979,-750.46184486,0.00013256,2]
[404695096,1770477040989,-750.46184486,0.00013256,2]
[404695097,1770477040999,-750.46184486,0.00013256,2]
[404695098,1770477041010,-750.46184486,0.00013256,2]
[404695099,1770477041020,-750.46184486,0.00013256,2]
[404695100,1770477041031,-750.46184486,0.00013256,2]
[404695101,1770477041042,-750.46184486,0.00013256,2]
[404695102,1770477041054,-750.46184486,0.00013256,2]
[404695103,1770477041063,-366.05697009,0.00013258,2]
[404695104,1770477041072,-500.0,0.00013258,2]
[404695105,1770477041081,-192.4827973,0.00013258,2]
[404695106,1770477041091,-500.0,0.00013258,2]
[404695107,1770477041100,-285.93622887,0.00013258,2]
[404695108,1770477041110,-500.0,0.00013258,2]
[404695109,1770477041119,-500.0,0.00013258,2]
[404695110,1770477041129,-500.0,0.00013258,2]
[404695111,1770477041139,-500.0,0.00013258,2]
[404695112,1770477041149,-500.0,0.00013258,2]
[404695113,1770477041159,-3520.645,0.00013287,2]
[404695114,1770477041168,-276.051,0.00013287,2]
[404695115,1770477041178,-245.56669015,0.00013288,2]
[404695116,1770477041187,-500.0,0.00013288,2]
[404695117,1770477041197,-348.00314474,0.00013288,2]
[404695118,1770477041207,-150.0,0.00013295,2]
[404695119,1770477041216,-1719.17442044,0.0001332,2]
[404695120,1770477041226,-250.0,0.0001335,2]
[404695121,1770477041235,-500.0,0.00013352,2]
[404695122,1770477041245,-500.0,0.00013352,2]
[404695123,1770477041254,-151.0,0.00013352,2]
[404695124,1770477041264,-500.0,0.00013352,2]
[404695125,1770477041273,-151.0,0.00013352,2]
[404695126,1770477041283,-500.0,0.00013352,2]
[404695127,1770477041292,-151.0,0.00013352,2]
[404695128,1770477041302,-500.0,0.00013352,2]
[404695129,1770477041311,-151.0,0.00013352,2]
[404695130,1770477041321,-500.0,0.00013352,2]
[404695131,1770477041331,-151.0,0.00013352,2]
[404695132,1770477041340,-151.0,0.00013352,2]
[404695133,1770477041350,-151.0,0.00013352,2]
[404695134,1770477041359,-500.0,0.00013352,2]
[404695135,1770477041369,-151.0,0.00013352,2]
[404695136,1770477041378,-500.0,0.00013352,2]
[404695137,1770477041388,-151.0,0.00013352,2]
[404695138,1770477041397,-500.0,0.00013352,2]
[404695139,1770477041406,-500.0,0.00013352,2]
[404695140,1770477041415,-151.0,0.00013352,2]
[404695141,1770477041424,-500.0,0.00013352,2]
[404695142,1770477041432,-500.0,0.00013352,2]
[404695143,1770477041441,-151.0,0.00013352,2]
[404695144,1770477041450,-500.0,0.00013352,2]
[404695145,1770477041459,-500.0,0.00013352,2]
[404695146,1770477041469,-151.0,0.00013352,2]
[404695147,1770477041483,-500.0,0.00013352,2]
[404695148,1770477041493,-151.0,0.00013352,2]
[404695149,1770477041503,-200.0,0.00013352,2]
[404695150,1770477041513,-151.0,0.00013352,2]
[404695151,1770477041522,-500.0,0.00013352,2]
[404695152,1770477041533,-151.0,0.00013352,2]
[404695153,1770477041543,-500.0,0.00013352,2]
[404695154,1770477041555,-200.0,0.00013352,2]
[404695155,1770477041565,-151.0,0.00013352,2]
[404695156,1770477041574,-500.0,0.00013352,2]
[404695157,1770477041584,-151.0,0.00013352,2]
[404695158,1770477041595,-500.0,0.00013352,2]
[404695159,1770477041605,-151.0,0.00013352,2]
[404695160,1770477041614,-500.0,0.00013352,2]
[404695161,1770477041625,-151.0,0.00013352,2]
[404695162,1770477041635,-500.0,0.00013352,2]
[404695163,1770477041644,-153.63735584,0.00013352,2]
[404695164,1770477041653,-500.0,0.00013352,2]
[404695165,1770477041662,-500.0,0.00013352,2]
[404695166,1770477041671,-500.0,0.00013352,2]
[404695167,1770477041680,-151.0,0.00013352,2]
[404695168,1770477041688,-151.0,0.00013352,2]
[404695169,1770477041698,-151.0,0.00013352,2]
[404695170,1770477041708,-151.0,0.00013352,2]
[404695171,1770477041717,-151.0,0.00013352,2]
[404695172,1770477041727,-151.0,0.00013352,2]
[404695173,1770477041736,-151.0,0.00013352,2]
[404695174,1770477041746,-151.0,0.00013352,2]
[404695175,1770477041755,-151.0,0.00013352,2]
[404695176,1770477041765,-151.0,0.00013352,2]
[404695177,1770477041774,-151.0,0.00013352,2]
[404695178,1770477041784,-166.66,0.00013459,2]
[404695179,1770477041794,-17803.95136229,0.00013679,2]
[404695180,1770477041804,-151.0,0.00013695,2]
[404695181,1770477041815,-544.78542289,0.00013698,2]
[404695182,1770477041824,-438.26710356,0.00013698,2]
[404695183,1770477041834,-500.0,0.00013698,2]
[404695184,1770477041844,-500.0,0.00013698,2]
[404695185,1770477041854,-500.0,0.00013698,2]
[404695186,1770477041867,-500.0,0.00013698,2]
[404695187,1770477041876,-531.12336409,0.00013698,2]
[404695188,1770477041886,-496.93460441,0.00013698,2]
[404695189,1770477041895,-500.0,0.00013698,2]
[404695190,1770477041904,-500.0,0.00013698,2]
[404695191,1770477041914,-500.0,0.00013698,2]
[404695192,1770477041923,-500.0,0.00013698,2]
[404695193,1770477041933,-500.0,0.00013698,2]
[404695194,1770477041943,-500.0,0.00013698,2]
[404695195,1770477041952,-500.0,0.00013698,2]
[404695196,1770477041962,-500.0,0.00013698,2]
[404695197,1770477041972,-500.0,0.00013698,2]
[404695198,1770477041981,-500.0,0.00013698,2]
[404695199,1770477041991,-500.0,0.00013698,2]
[404695200,1770477042001,-500.0,0.00013698,2]
[404695201,1770477042012,-500.0,0.00013698,2]
[404695202,1770477042021,-500.0,0.00013698,2]
[404695203,1770477042031,-500.0,0.00013698,2]
[404695204,1770477042041,-178.81113549,0.00013698,2]
[404695205,1770477042051,-500.0,0.00013698,2]
[404695206,1770477042062,-500.0,0.00013698,2]
[404695207,1770477042072,-500.0,0.00013698,2]
[404695208,1770477042082,-295.07674716,0.00013698,2]
[404695209,1770477042094,-500.0,0.00013698,2]
[404695210,1770477042104,-500.0,0.00013698,2]
[404695211,1770477042114,-193.45718461,0.00013698,2]
[404695212,1770477042124,-351.5182,0.00013698,2]
[404695213,1770477042133,-500.0,0.00013698,2]
[404695214,1770477042143,-500.0,0.00013698,2]
[404695215,1770477042153,-500.0,0.00013698,2]
[404695216,1770477042161,-500.0,0.00013698,2]
[404695217,1770477042170,-490.83125822,0.00013698,2]
[404695218,1770477042178,-500.0,0.00013698,2]
[404695219,1770477042187,-500.0,0.00013698,2]
[404695220,1770477042196,-500.0,0.00013698,2]
[404695222,1770477042205,-410.20942792,0.00013698,2]
[404695223,1770477042214,-500.0,0.00013698,2]
[404695224,1770477042223,-192.67143229,0.00013698,2]
[404695225,1770477042231,-500.0,0.00013698,2]
[404695226,1770477042240,-500.0,0.00013698,2]
[404695227,1770477042254,-514.80985952,0.00013698,2]
[404695228,1770477042263,-625.73,0.00013698,2]
[404695229,1770477042272,-625.73,0.00013698,2]
[404695230,1770477042282,-625.73,0.00013698,2]
[404695231,1770477042291,-625.73,0.00013698,2]
[404695232,1770477042301,-625.73,0.00013698,2]
[404695233,1770477042311,-625.73,0.00013698,2]
[404695234,1770477042320,-625.73,0.00013698,2]
[404695235,1770477042330,-625.73,0.00013698,2]
[404695236,1770477042340,-625.73,0.00013698,2]
[404695237,1770477042349,-625.73,0.00013698,2]
[404695238,1770477042359,-625.73,0.00013698,2]
[404695239,1770477042368,-625.73,0.00013698,2]
[404695240,1770477042377,-625.73,0.00013698,2]
[404695241,1770477042387,-625.73,0.00013698,2]
[404695242,1770477042396,-299.99,0.00013699,2]
[404695243,1770477042406,-4999.99,0.00013699,2]
[404695244,1770477042423,-150.99,0.00013699,2]
[404695245,1770477042432,-15520.79,0.00013699,2]
[404695246,1770477042442,-9999.99,0.00013699,2]
[404695247,1770477042451,-14612.94,0.00013699,2]
[404695248,1770477042460,-26702.96,0.00013699,2]
[404695249,1770477042470,-9999.99,0.00013699,2]
[404695250,1770477042479,-9999.99,0.00013699,2]
[404695251,1770477042488,-5908.21,0.00013699,2]
[404695252,1770477042497,-9999.99,0.00013699,2]
[404695253,1770477042507,-150.99,0.00013699,2]
[404695254,1770477042518,-499.99,0.00013699,2]
[404695255,1770477042527,-1610.39,0.00013699,2]
[404695256,1770477042538,-22352.3,0.00013699,2]
[404695257,1770477042548,-1554.0,0.00013699,2]
[404695258,1770477042560,-999.99,0.00013699,2]
[404695259,1770477042569,-9999.99,0.00013699,2]
[404695260,1770477042579,-29999.99,0.00013699,2]
[404695261,1770477042589,-438.39,0.00013699,2]
[404695262,1770477042599,-14418.68,0.00013699,2]
[404695263,1770477042608,-166.66,0.00013742,2]
[404695264,1770477042617,-255.0,0.00013757,2]
[404695265,1770477042627,-420.0,0.00013884,2]
[404695266,1770477042638,-200.0,0.000139,2]
[404695267,1770477042648,-200.0,0.000139,2]
[404695268,1770477042658,-500.0,0.000139,2]
[404695269,1770477042667,-600.0,0.00013922,2]
[404695270,1770477042677,-600.0,0.00013922,2]
[404695271,1770477042686,-1680.0,0.00013922,2]
[404695272,1770477042696,-300.0,0.00013923,2]
[404695273,1770477042706,-250.0,0.00013923,2]
[404695274,1770477042715,-600.0,0.00013923,2]
[404695275,1770477042726,-245.4999368,0.00013954,2]
[404695276,1770477042736,-166.66,0.00014026,2]
[404695277,1770477042746,-1719.17442044,0.00014084,2]
[404695278,1770477042755,-17803.95136229,0.00014194,2]
[404695279,1770477042764,-666.0,0.00014216,2]
[404695280,1770477042775,-666.0,0.00014216,2]
[404695281,1770477042785,-166.66,0.00014309,2]
[404695282,1770477042795,-500.0,0.00014364,2]
[404695283,1770477042808,-500.0,0.00014364,2]
[404695284,1770477042817,-500.0,0.00014364,2]
[404695285,1770477042829,-500.0,0.00014364,2]
[404695286,1770477042839,-150.82,0.00014374,2]
[404695287,1770477042849,-252.55,0.00014418,2]
[404695288,1770477042859,-245.56669013,0.00014441,2]
[404695289,1770477042868,-200.0,0.00014448,2]
[404695290,1770477042878,-200.0,0.00014448,2]
[404695291,1770477042888,-500.0,0.00014448,2]
[404695292,1770477042899,-166.66,0.00014592,2]
[404695293,1770477042908,-666.0,0.00014633,2]